[Event "93rd German Championship 2022"]
[Site "Magdeburg"]
[Date "2022.08.20"]
[Round "9.12"]
[White "Bracker, Arne"]
[Black "Miller, Eduard"]
[Result "0-1"]
[ECO "B76"]
[WhiteElo "2277"]
[BlackElo "2350"]
[Annotator "TA"]
[PlyCount "54"]
[EventDate "2022.08.14"]
[EventType "swiss"]
[EventCountry "GER"]
[SourceTitle "playchess.com"]
[Source "ChessBase"]
[SourceQuality "1"]
[TimeControl "40/5400+30:1800+30"]

{[%evp 26,54,35,35,35,41,63,70,103,85,88,108,122,107,116,127,127,125,119,125,141,139,131,129,130,85,97,-775,-781,-29994,-29995]} 1. e4 {[%emt 0:00:03]} c5 {[%emt 0:00:04]} 2. Nf3 {[%emt 0:00:07]} d6 {[%emt 0:00:04]} 3. d4 {[%emt 0:02:27]} cxd4 {[%emt 0:00:45]} 4. Nxd4 {[%emt 0:00:02]} Nf6 {[%emt 0:00:07]} 5. Nc3 {[%emt 0:00:06]} g6 {[%emt 0:00:06]} 6. Be3 {[%emt 0:00:23]} Bg7 {[%emt 0:00:05]} 7. f3 {[%emt 0:00:19]} Nc6 {[%emt 0:00:06]} 8. Qd2 {[%emt 0:00:29]} O-O {[%emt 0:00:10]} 9. O-O-O {[%emt 0:00:19]} d5 {[%emt 0:00:06]} 10. exd5 {[%emt 0:00:22]} Nxd5 {[%emt 0:00:12]} 11. Nxc6 {[%emt 0:00:07]} bxc6 {[%emt 0:00:04]} 12. Bd4 {[%emt 0:00:11]} Bxd4 {[%emt 0:00:33]} 13. Qxd4 {[%emt 0:00:09]} Qb6 {[%emt 0:00:04]} 14. Na4 {[%emt 0:02:16]} Qc7 {[%emt 0:06:41] B76: Sicilian Dragon: Yugoslav Attack, 9 g4 and 9 0-0-0.} 15. Nc5 {[%emt 0:05:19]} e5 {[%emt 0:06:56]} 16. Qf2 {[%emt 0:06:59]} Rb8 {[%emt 0:15:48] White is slightly better.} 17. Bc4 $1 {[%emt 0:02:17]} Qb6 {[%emt 0:05:58] [#]} 18. Bb3 $1 {[%emt 0:01:46] [#]} Nf4 $146 {[%emt 0:03:21][%cal Of4g2]} ({Predecessor:} 18... Nb4 19. a3 Na6 20. Nd3 Qxf2 21. Nxf2 Nc5 22. Bc4 Na4 23. Nd3 Bf5 24. Bb3 Bxd3 25. Bxa4 {½-½ (44) Kryvoruchko,Y (2717)-Edouard,R (2632) Reykjavik 2015}) 19. Rhe1 {[%emt 0:08:00]} Be6 {[%emt 0:33:49]} 20. g3 {[%emt 0:27:36]} Bxb3 {[%emt 0:03:50]} 21. axb3 {[%emt 0:00:59]} ({Don't take} 21. cxb3 Ne6 22. Rxe5 Rfd8 $14) 21... Ne6 {[%emt 0:06:58]} 22. Rxe5 {[%emt 0:00:40]} Qa5 {[%emt 0:04:10] [#] Hoping for ...Qa1+.} 23. Nxe6 $1 {[%emt 0:09:56]} Qxe5 {[%emt 0:08:58]} 24. Nxf8 {[%emt 0:01:14]} Rxf8 {[%emt 0:00:02]} 25. Qxa7 {[%emt 0:05:35]} Qe2 {[%emt 0:00:21][%csl LRf3,LRh2]} 26. Qc7 $2 {[%emt 0:10:40][%mdl 8192] [#]} (26. f4 $16) 26... Ra8 $1 $19 {[%emt 0:01:11][%cal Ra8a1]} 27. Rd8+ {[%emt 0:00:40]} Kg7 {[%emt 0:00:04] Weighted Error Value: White=0.79/Black=0.06 (flawless)} 0-1

[Event "93rd German Championship 2022"]
[Site "Magdeburg"]
[Date "2022.08.20"]
[Round "9.13"]
[White "Colpe, Malte"]
[Black "Cofmann, Veaceslav"]
[Result "1-0"]
[ECO "A58"]
[WhiteElo "2369"]
[BlackElo "2301"]
[Annotator "TA"]
[PlyCount "115"]
[EventDate "2022.08.14"]
[EventType "swiss"]
[EventCountry "GER"]
[SourceTitle "playchess.com"]
[Source "ChessBase"]
[SourceQuality "1"]
[TimeControl "40/5400+30:1800+30"]

{[%evp 9,114,28,56,41,49,57,60,51,39,32,47,35,33,38,45,45,45,42,44,38,38,45,50,31,54,43,37,31,41,51,64,25,65,30,60,61,66,57,73,57,72,56,70,0,0,-66,-64,-107,0,0,47,35,47,35,101,98,197,196,252,142,251,261,307,307,293,237,225,0,551,533,618,352,429,429,408,281,280,284,280,280,281,285,319,327,326,319,477,460,448,431,695,659,642,638,697,675,767,744,801,596,628,595,677,437,995,981,29999]} 1. d4 {[%emt 0:00:04]} Nf6 {[%emt 0:00:07]} 2. c4 {[%emt 0:00:06][%cal Bc2c4,Bc4b5][%mdl 32]} c5 {[%emt 0:00:05]} 3. d5 {[%emt 0:00:05]} b5 {[%emt 0:00:04]} 4. cxb5 {[%emt 0:00:05]} a6 {[%emt 0:00:05]} 5. bxa6 {[%emt 0:00:06]} g6 {[%emt 0:00:12]} 6. Nc3 {[%emt 0:00:08] A58: Benko/Volga Gambit: Lines with 5 bxa6.} Bg7 {[%emt 0:00:10]} 7. e4 {[%emt 0:00:11] Hoping for e5.} O-O {[%emt 0:00:07]} 8. a7 {[%emt 0:00:33] White is slightly better.} Rxa7 {[%emt 0:00:06]} 9. Nf3 {[%emt 0:00:18]} e6 {[%emt 0:00:09]} 10. Be2 {[%emt 0:00:50]} exd5 {[%emt 0:00:07]} 11. exd5 {[%emt 0:00:06]} d6 {[%emt 0:00:06]} 12. O-O {[%emt 0:00:19]} Na6 {[%emt 0:00:10]} 13. Nb5 {[%emt 0:01:21]} Rd7 {[%emt 0:00:09]} 14. Bc4 {[%emt 0:01:57]} Bb7 {[%emt 0:00:35]} 15. Qb3 {[%emt 0:01:08]} Qa8 {[%emt 0:01:51][%cal Rb7d5]} 16. Rd1 {[%emt 0:09:45]} Nc7 {[%emt 0:06:11]} 17. Nxc7 {[%emt 0:04:20]} Rxc7 {[%emt 0:00:05]} 18. Bf4 {[%emt 0:01:37]} Rd7 {[%emt 0:01:08]} 19. Qd3 {[%emt 0:09:22]} Nh5 {[%emt 0:09:02] [#]} 20. Bc1 $146 {[%emt 0:02:35]} ({Predecessor:} 20. Bd2 Bxb2 21. Rab1 Bg7 22. Rb6 h6 23. Qb3 Nf6 24. Bf4 Rfd8 25. Bxd6 Ne4 26. Be5 Bxd5 {1-0 (39) Raja,H (2482)-Gschnitzer,A (2388) Caleta 2020}) 20... Re7 {[%emt 0:02:06]} 21. Bg5 {[%emt 0:05:41]} Nf6 {[%emt 0:15:47]} 22. a4 {[%emt 0:07:00]} Bc8 {[%emt 0:01:12]} 23. Bb5 {[%emt 0:13:49]} Bf5 {[%emt 0:02:57]} 24. Qa3 {[%emt 0:01:43]} (24. Qc3 $5 {[%cal Rg5f6]} Ne4 25. Qe3 $14) 24... Ra7 {[%emt 0:08:05]} 25. Bf4 {[%emt 0:08:55]} Qb8 {[%emt 0:03:53]} 26. Rac1 {[%emt 0:02:43]} ({White should try} 26. b4 $14) 26... Nh5 $1 $11 {[%emt 0:01:58]} 27. Bg5 {[%emt 0:04:40]} ({Better is} 27. Rc4 $11) 27... Bd7 $1 $15 {[%emt 0:01:24]} 28. Qd3 {[%emt 0:05:02][%cal Ob2b4]} Bxb5 {[%emt 0:00:56]} (28... Bxb2 $17 29. Bxd7 Bxc1) 29. axb5 $11 {[%emt 0:00:08][%cal Ob2b4]} Rb7 {[%emt 0:00:20]} (29... Ra4 $11) 30. b4 $1 $36 {[%emt 0:01:59][%mdl 2048] White fights for an advantage.} cxb4 {[%emt 0:06:33]} 31. Nd4 $1 {[%emt 0:00:29]} ({Of course not} 31. g4 Nf6 32. Nd4 Nxg4 $15) 31... Qa7 {[%emt 0:01:03]} ({Black should play} 31... Bxd4 $14 32. Qxd4 Ng7) 32. Be3 $16 {[%emt 0:04:45][%cal Od4e6] Threatens to win with Ne6! White is more active.} Qa3 {[%emt 0:03:32] [#]} (32... Qa2 $16) 33. Qc4 $1 $18 {[%emt 0:00:24]} Qa5 {[%emt 0:19:09]} (33... Re8 $142 34. b6 Rxb6) 34. Rb1 {[%emt 0:02:17]} (34. Qc6 $18 Rbb8 35. Qxd6) 34... Nf6 {[%emt 0:04:06]} (34... Bxd4 $16 35. Qxd4 (35. Rxd4 Rxb5 36. h3 Nf6 $11) 35... Ng7) 35. Rxb4 {[%emt 0:02:16]} Nd7 {[%emt 0:01:20]} 36. Nc6 {[%emt 0:01:16]} Qa3 {[%emt 0:00:42]} 37. Ra4 {[%emt 0:03:13]} Qb2 {[%emt 0:01:24]} 38. Rb4 {[%emt 0:00:12]} (38. Ra7 $18 Rxa7 39. Nxa7 (39. Bxa7 f5 $18)) 38... Qf6 $2 {[%emt 0:02:20][%mdl 8192]} (38... Qa3 $1 $11 {and Black has nothing to worry.}) 39. b6 {[%emt 0:01:38]} Ra8 {[%emt 0:00:09]} 40. h4 {[%emt 0:05:24] [#] Strongly threatening Ra4.} Bf8 {[%emt 0:07:15]} 41. Rdb1 {[%emt 0:09:22]} Qf5 {[%emt 0:03:57]} 42. Qe4 {[%emt 0:06:37]} Qxe4 {[%emt 0:08:48]} 43. Rxe4 {[%emt 0:00:07]} Nf6 {[%emt 0:00:28]} 44. Rd4 {[%emt 0:00:40]} Ra6 {[%emt 0:02:09]} 45. Rd3 {[%emt 0:01:42]} Ra8 {[%emt 0:00:56]} 46. f3 {[%emt 0:04:05]} Nd7 {[%emt 0:02:15]} 47. Rb5 {[%emt 0:00:51]} Ne5 {[%emt 0:03:12]} (47... Ra1+ {is a better defense.} 48. Kf2 Ra2+ 49. Kf1 Ra1+ 50. Kf2 Ra2+ 51. Kg1 Ra1+ 52. Kh2 Re1) 48. Rdb3 {[%emt 0:01:12]} Nc4 {[%emt 0:02:26] Inhibits Na5.} 49. Bf2 {[%emt 0:02:21] R3b4 is the strong threat.} Nd2 {[%emt 0:04:40]} (49... Ra1+ $142 50. Rb1 Rxb1+ 51. Rxb1 Bh6) 50. Rb2 {[%emt 0:00:47]} Nc4 {[%emt 0:02:25]} 51. R2b4 {[%emt 0:00:44]} Ra1+ {[%emt 0:01:27]} 52. Kh2 {[%emt 0:00:26]} Ne5 {[%emt 0:00:14]} 53. Bd4 {[%emt 0:02:57][%csl LRa1,LRe5]} Ra2 {[%emt 0:01:34]} 54. Rb2 {[%emt 0:00:36]} Rxb2 {[%emt 0:01:24]} 55. Rxb2 {[%emt 0:00:27]} Bg7 {[%emt 0:01:57]} 56. Ra2 {[%emt 0:03:10]} Nd7 {[%emt 0:00:59]} (56... Nxf3+ $142 57. gxf3 Bxd4) 57. Ra8+ {[%emt 0:00:40]} Bf8 {[%emt 0:00:26]} 58. Ne7# {Weighted Error Value: White=0.28 (precise) /Black=0.53} 1-0

[Event "93rd German Championship 2022"]
[Site "Magdeburg"]
[Date "2022.08.20"]
[Round "9.14"]
[White "Boder, Jan"]
[Black "Koehler, Christian Friedrich"]
[Result "1-0"]
[ECO "E07"]
[WhiteElo "2315"]
[BlackElo "2285"]
[Annotator "TA"]
[PlyCount "39"]
[EventDate "2022.08.14"]
[EventType "swiss"]
[EventCountry "GER"]
[SourceTitle "playchess.com"]
[Source "ChessBase"]
[SourceQuality "1"]
[TimeControl "40/5400+30:1800+30"]

{[%evp 17,39,3,12,10,18,20,24,21,33,30,53,24,51,47,42,18,31,8,30,27,41,32,175,168]} 1. d4 {[%emt 0:00:04]} d5 {[%emt 0:00:07]} 2. c4 {[%emt 0:00:09]} e6 {[%emt 0:00:48]} 3. Nf3 {[%emt 0:00:31]} Nf6 {[%emt 0:00:32]} 4. g3 {[%emt 0:00:22]} Be7 {[%emt 0:03:40]} 5. Bg2 {[%emt 0:00:18]} O-O {[%emt 0:00:07]} 6. O-O {[%emt 0:00:05]} c6 {[%emt 0:01:08]} 7. Nc3 {[%emt 0:00:22]} Nbd7 {[%emt 0:02:48][%cal Bb8d7,Bd7f8,Bf8e6][%mdl 32]} 8. Qd3 {[%emt 0:05:39]} b6 {[%emt 0:02:13]} 9. cxd5 {[%emt 0:01:27]} exd5 {[%emt 0:02:26]} 10. Bf4 {[%emt 0:13:37] E07: Closed Catalan: Main Line (5 Nf3 0-0 6 0-0 Nbd7).} Bb7 {[%emt 0:04:04]} 11. Rad1 {[%emt 0:00:37]} Re8 {[%emt 0:07:32]} 12. Ne5 {[%emt 0:09:27] White has an edge.} Nf8 {[%emt 0:01:54]} 13. e4 {[%emt 0:05:13] [#]} dxe4 $146 {[%emt 0:03:07]} ({Predecessor:} 13... Bb4 14. exd5 cxd5 15. Bg5 Bxc3 16. bxc3 h6 17. Bxf6 Qxf6 18. Rfe1 Ng6 19. f4 Rad8 20. Nxg6 fxg6 {½-½ (73) Grachev,B (2611)-Charkrubian,T (1906) Tuapse 2021}) 14. Qc4 {[%emt 0:03:44]} ({But not} 14. Bxe4 Nxe4 15. Qxe4 Qc8 $15) 14... Ne6 {[%emt 0:06:38]} 15. Nxe4 {[%emt 0:01:06][%cal Oe5f7] [#] Hoping for Nxf7!} Nd5 {[%emt 0:03:01]} 16. Bc1 {[%emt 0:04:12]} Rc8 {[%emt 0:01:17]} 17. Nc3 {[%emt 0:06:28][%cal Oe5c6]} Qd6 {[%emt 0:05:20]} 18. Rfe1 {[%emt 0:03:10]} Bf8 {[%emt 0:10:24]} 19. Qd3 {[%emt 0:06:47]} Rc7 {[%emt 0:06:40]} (19... Qc7 $14) 20. Bxd5 {[%emt 0:03:49] Weighted Error Value: White=0.05 (flawless) /Black=0.31} 1-0

[Event "93rd German Championship 2022"]
[Site "Magdeburg"]
[Date "2022.08.20"]
[Round "9.15"]
[White "Parvanyan, Alfred"]
[Black "Farokhi, Keyvan"]
[Result "1/2-1/2"]
[ECO "A05"]
[WhiteElo "2126"]
[BlackElo "2332"]
[Annotator "TA"]
[PlyCount "241"]
[EventDate "2022.08.14"]
[EventType "swiss"]
[EventCountry "GER"]
[SourceTitle "playchess.com"]
[Source "ChessBase"]
[SourceQuality "1"]
[TimeControl "40/5400+30:1800+30"]

{[%evp 12,241,22,19,21,23,22,13,30,-11,0,-18,0,0,1,-36,-6,-61,-63,-70,-60,-81,-78,-95,-80,-122,-85,-102,-83,-106,-6,-12,-20,-11,-8,-43,0,-70,0,0,0,0,0,0,0,0,18,18,20,20,20,20,20,20,20,20,42,19,23,0,0,0,0,0,0,0,0,0,0,0,0,0,0,0,0,0,0,0,0,0,0,0,0,-35,-8,-8,-8,-58,-59,-66,-63,-59,-8,-8,-8,-8,-8,-8,-8,-8,-8,-8,0,-8,0,-8,-8,-8,-8,-8,-8,-8,-8,-8,-8,-8,-8,-8,-8,-8,-8,-8,-8,-8,-8,-8,-8,-8,-8,-8,-8,-8,-8,-8,-8,-8,-8,-8,-8,-8,-8,-8,-8,-8,-8,-8,-8,-8,-8,-8,-8,-8,-8,-8,-8,-8,-8,-8,-8,-8,-8,-15,-8,-8,-8,-8,-8,-8,-8,-8,-8,-8,-8,-8,-8,-8,-8,-8,-8,-8,-8,-8,-8,-8,-8,-8,-8,-8,-8,-8,-8,-8,-8,-8,-8,-8,-8,-8,-8,-8,-8,-8,-8,-8,-8,-8,-8,-8,-8,-8,-8,-8,-8,-8,0,-8,-8,-8,-8,-8,0,-8,0,0,0,0,0,0,0,0,0,-8]} 1. Nf3 {[%emt 0:02:57]} Nf6 {[%emt 0:00:09]} 2. g3 {[%emt 0:00:10]} b5 {[%emt 0:00:06]} 3. Bg2 {[%emt 0:00:14]} Bb7 {[%emt 0:00:07]} 4. O-O {[%emt 0:00:17]} e6 {[%emt 0:00:12]} 5. d3 {[%emt 0:00:11][%cal Bd2d3,Bd3d4][%mdl 32]} c5 {[%emt 0:00:10]} 6. Nbd2 {[%emt 0:00:19]} d6 {[%emt 0:01:35]} 7. e4 {[%emt 0:01:51]} Nbd7 {[%emt 0:00:38] A05: Réti Opening: 1 Nf3 Nf6.} 8. Qe2 {[%emt 0:03:14]} Be7 {[%emt 0:09:06]} 9. d4 {[%emt 0:05:01]} a6 {[%emt 0:04:08]} 10. c3 {[%emt 0:05:05]} O-O {[%emt 0:00:23] [#]} 11. h4 $146 {[%emt 0:00:44]} ({Predecessor:} 11. e5 dxe5 12. dxe5 Nd5 13. h4 Qc7 14. h5 c4 15. h6 g6 16. Rd1 Rfd8 17. Nf1 {1-0 (53) Adly,A (2551)-Nyzhnyk,I (2405) Reykjavik 2008}) 11... Rc8 {[%emt 0:08:24]} 12. a4 {[%emt 0:08:21]} Qb6 {[%emt 0:06:48]} 13. a5 {[%emt 0:03:46]} Qc7 {[%emt 0:05:12]} 14. Ng5 {[%emt 0:10:25]} (14. Rd1 $11) 14... cxd4 {[%emt 0:09:08]} 15. cxd4 {[%emt 0:00:07][%cal Bc3d4,Bd4e5,Be5d6,Bd6d7][%mdl 32]} Nb8 {[%emt 0:00:38]} 16. e5 {[%emt 0:06:28]} dxe5 {[%emt 0:02:24]} 17. dxe5 {[%emt 0:01:57]} Nfd7 {[%emt 0:00:59]} 18. Ndf3 {[%emt 0:11:24]} h6 {[%emt 0:03:39]} 19. Ne4 {[%emt 0:03:59]} Qc4 {[%emt 0:13:58]} (19... Nxe5 20. Nxe5 Qxe5 21. Bf4 $15) 20. Qxc4 {[%emt 0:01:56]} bxc4 {[%emt 0:00:09]} (20... Rxc4 $17 21. Nd6 Bxf3 22. Bxf3 Rc7) 21. Nd6 $11 {[%emt 0:03:59]} Bxd6 {[%emt 0:00:08]} 22. exd6 {[%emt 0:00:04]} Rfd8 {[%emt 0:01:59]} 23. Bf4 {[%emt 0:08:18]} Nc5 {[%emt 0:08:55]} 24. Rfd1 {[%emt 0:02:26]} ({White should play} 24. Ne5 $11) 24... Nd3 {[%emt 0:02:25]} (24... Nbd7 $15) 25. Ne5 {[%emt 0:03:41]} Bxg2 {[%emt 0:00:08]} 26. Kxg2 {[%emt 0:02:04]} Nxb2 {[%emt 0:03:34] Pair of Knights!} 27. d7 {[%emt 0:00:28]} Rc5 {[%emt 0:00:25]} 28. Rd6 {[%emt 0:05:04]} Nd3 {[%emt 0:09:11]} 29. Nxd3 {[%emt 0:02:21]} cxd3 {[%emt 0:00:01]} 30. Rb1 {[%emt 0:03:19][%cal Ob1b8]} (30. Rxd3 Rxd7 31. Rd6 Rxd6 32. Bxd6 Rc8 $17) (30. Be3 Rd5 31. Rxd5 exd5 $15) 30... Nxd7 {[%emt 0:01:05]} 31. Rxd3 {[%emt 0:00:59]} Rd5 {[%emt 0:01:33]} (31... Rxa5 $2 32. Bc7 Rb5 33. Rxb5 $18) 32. Rxd5 {[%emt 0:00:13]} exd5 {[%emt 0:00:02][%mdl 4096] Endgame [#] KRB-KRN} 33. Rb6 $1 {[%emt 0:00:50]} g5 {[%emt 0:02:44]} (33... Nxb6 34. axb6 a5 35. b7 $16) (33... Nc5 34. Bd6) 34. hxg5 {[%emt 0:01:32]} (34. Bc7 $5 {[%cal Rc7d8]} Rc8 35. Bd6 $1 $14) 34... hxg5 {[%emt 0:00:02]} ({Weaker is} 34... Nxb6 35. axb6 hxg5 36. Bc7 $18) 35. Bxg5 {[%emt 0:01:27]} (35. Bc7 $5 {[%cal Rc7d8]} Rc8 {[#]} 36. Bd6 $1 $14) 35... Nxb6 {[%emt 0:00:05]} 36. Bxd8 $14 {[%emt 0:00:06] KB-KN} Nc4 {[%emt 0:00:07]} 37. Kf3 {[%emt 0:00:41]} Kf8 {[%emt 0:05:24]} 38. Kf4 {[%emt 0:00:03]} Ke8 {[%emt 0:00:09]} 39. Bf6 {[%emt 0:00:05]} Kd7 {[%emt 0:00:20]} 40. Bc3 {[%emt 0:00:10]} Kc6 {[%emt 0:01:43]} 41. g4 {[%emt 0:06:23]} Kc5 {[%emt 0:06:33]} 42. Kf5 {[%emt 0:03:15]} d4 {[%emt 0:08:20]} 43. Be1 {[%emt 0:00:27]} Kd5 {[%emt 0:02:52] Strongly threatening ...d3.} (43... d3 $5 44. Kf6 Nd6 $11) 44. g5 $1 {[%emt 0:06:18]} Ne5 {[%emt 0:11:34]} 45. Bd2 $1 {[%emt 0:02:23]} d3 {[%emt 0:01:52]} 46. Kf6 {[%emt 0:03:55]} Ke4 {[%emt 0:02:20]} 47. f4 {[%emt 0:02:42]} Nf3 {[%emt 0:01:19]} (47... Nc4 $5 {[%cal Rc4d2]} 48. Bc1 Nxa5 49. Kxf7 Nb3 $15) 48. Bc1 {[%emt 0:01:25]} Nd4 {[%emt 0:00:43] Hoping for ...Nb3.} 49. Bd2 {[%emt 0:02:58]} (49. Kxf7 $11 Nb3 50. g6 Nxc1 51. g7) 49... Nb3 $1 $15 {[%emt 0:00:17]} 50. Kxf7 {[%emt 0:02:33]} Nxd2 {[%emt 0:00:04] KN-K3P} 51. g6 {[%emt 0:00:08] Threatens to win with g7.} Nf3 {[%emt 0:00:14]} (51... Kxf4 $2 52. g7 Nf3 53. g8=Q $18) ({Better is} 51... Nc4 $15 52. g7 d2) 52. g7 $11 {[%emt 0:00:23] The position is equal.} d2 {[%emt 0:00:03]} 53. g8=Q {[%emt 0:00:24]} d1=Q {[%emt 0:00:04]} 54. Qg6+ {[%emt 0:01:36]} Kxf4 {[%emt 0:00:03]} 55. Qf6+ {[%emt 0:00:20]} Ke4 {[%emt 0:01:40]} 56. Qg6+ {[%emt 0:00:55]} Kf4 {[%emt 0:00:07]} 57. Qf6+ {[%emt 0:00:09]} Ke4 {[%emt 0:00:03]} 58. Qg6+ {[%emt 0:00:10]} Ke3 {[%emt 0:00:11]} 59. Qe6+ {[%emt 0:01:42]} Kf2 {[%emt 0:00:04]} 60. Qxa6 {[%emt 0:01:00]} Qd5+ {[%emt 0:00:26]} 61. Ke7 {[%emt 0:00:26]} Qe5+ {[%emt 0:00:51]} 62. Kd7 {[%emt 0:01:25]} Qg7+ {[%emt 0:00:14]} 63. Kc8 {[%emt 0:00:19]} Qf8+ {[%emt 0:00:39]} 64. Kb7 {[%emt 0:00:33]} Qe7+ {[%emt 0:00:06]} 65. Kb8 {[%emt 0:01:18]} Qd8+ {[%emt 0:00:06]} 66. Kb7 {[%emt 0:00:13] Qb6+ is the strong threat.} Qd7+ {[%emt 0:00:05]} 67. Kb8 {[%emt 0:00:31]} Nd4 {[%emt 0:01:16]} 68. Qb6 {[%emt 0:00:54]} Ke2 {[%emt 0:00:57] ( -> ...Nc6+)} 69. Qc7 {[%emt 0:02:04]} Qe8+ {[%emt 0:02:37]} 70. Kb7 {[%emt 0:00:19] And now Qc4+ would win.} Qb5+ {[%emt 0:00:36]} 71. Qb6 {[%emt 0:00:54]} Qd7+ {[%emt 0:00:16]} 72. Qc7 $132 {[%emt 0:00:18][%mdl 2048] White is not holding back} Qd5+ {[%emt 0:00:23]} 73. Kc8 {[%emt 0:00:44]} Nb5 {[%emt 0:00:19]} 74. Qe7+ {[%emt 0:00:48]} Kf3 {[%emt 0:00:51]} 75. Qf6+ {[%emt 0:00:20]} Ke4 {[%emt 0:00:41]} 76. Qe7+ {[%emt 0:00:04]} Kd4 {[%emt 0:00:17]} 77. Qd7 {[%emt 0:01:08]} Nd6+ {[%emt 0:00:05]} 78. Kd8 {[%emt 0:00:41]} Qxa5+ {[%emt 0:00:30]} 79. Ke7 $1 {[%emt 0:00:19]} Qe5+ {[%emt 0:00:03]} 80. Qe6 {[%emt 0:00:49]} Nf5+ {[%emt 0:00:09]} 81. Kd7 {[%emt 0:00:33]} Qg7+ {[%emt 0:00:11]} 82. Kc6 {[%emt 0:00:12]} Qg2+ {[%emt 0:00:35]} 83. Kc7 {[%emt 0:00:30]} Qc2+ {[%emt 0:01:18]} 84. Kd7 {[%emt 0:00:39]} Qa4+ {[%emt 0:00:27]} 85. Qc6 $1 {[%emt 0:00:02]} Qa5 {[%emt 0:00:48]} 86. Qf6+ {[%emt 0:00:42]} Ke4 {[%emt 0:00:02]} 87. Qc6+ {[%emt 0:00:26]} Kd3 {[%emt 0:00:26]} 88. Qf3+ {[%emt 0:00:18]} Ne3 {[%emt 0:00:04]} 89. Qc6 {[%emt 0:00:20]} Kd4 {[%emt 0:01:00]} 90. Qf6+ {[%emt 0:00:05]} Ke4 {[%emt 0:00:18]} 91. Qe6+ {[%emt 0:00:37]} Kf4 {[%emt 0:00:28]} 92. Qd6+ {[%emt 0:00:16]} Kf3 {[%emt 0:00:29]} 93. Qf6+ {[%emt 0:01:00]} Ke2 {[%emt 0:00:54]} 94. Qb2+ {[%emt 0:00:44]} Kd3 {[%emt 0:00:12]} 95. Qb3+ {[%emt 0:00:42]} Kd2 {[%emt 0:00:41]} 96. Qb2+ {[%emt 0:00:21]} Nc2 {[%emt 0:00:02]} 97. Qb7 {[%emt 0:00:22]} Qf5+ {[%emt 0:00:13]} 98. Kc7 {[%emt 0:00:16]} Qf7+ {[%emt 0:00:33]} 99. Kb6 {[%emt 0:00:16]} Qf2+ {[%emt 0:00:19]} 100. Kc7 {[%emt 0:00:09]} Qf4+ {[%emt 0:00:27]} 101. Kd7 {[%emt 0:01:38]} Nb4 {[%emt 0:00:27]} 102. Qc7 {[%emt 0:00:53]} Qf5+ {[%emt 0:00:22]} 103. Kd6 {[%emt 0:00:25]} Kd3 {[%emt 0:00:55]} ({Of course not} 103... Qd3+ $6 104. Ke6 $17) 104. Qd7 {[%emt 0:00:42]} Qh5 {[%emt 0:00:37]} 105. Ke6+ {[%emt 0:00:23]} Kc4 {[%emt 0:00:35]} 106. Qc7+ {[%emt 0:00:06]} Kb3 {[%emt 0:00:19]} 107. Qg3+ {[%emt 0:00:46]} Ka4 {[%emt 0:00:01]} 108. Qe5 {[%emt 0:00:11]} Qg4+ {[%emt 0:01:03]} 109. Kd6 {[%emt 0:00:26]} Qg6+ {[%emt 0:00:29]} 110. Qe6 {[%emt 0:00:33]} Qd3+ {[%emt 0:00:06]} 111. Ke5 {[%emt 0:00:42]} Kb5 {[%emt 0:00:11]} 112. Qf5 {[%emt 0:00:33]} Qd8 {[%emt 0:01:00]} 113. Ke4+ {[%emt 0:00:34]} Kc4 {[%emt 0:00:32]} 114. Qe6+ {[%emt 0:00:11]} Kc5 {[%emt 0:00:16]} 115. Qe5+ {[%emt 0:00:19]} Kc4 {[%emt 0:01:01]} 116. Qe6+ {[%emt 0:00:05]} Kc3 {[%emt 0:00:06]} 117. Qe5+ {[%emt 0:00:05]} Kc2 {[%emt 0:01:36]} 118. Qc5+ {[%emt 0:00:33]} Kb3 {[%emt 0:00:06]} 119. Qe3+ {[%emt 0:00:14]} Kc2 {[%emt 0:00:03]} 120. Qc5+ {[%emt 0:00:05]} Kd1 {[%emt 0:00:08]} ({Much weaker is} 120... Kb3 121. Qe3+ Kc4 122. Qc1+ Kb5 123. Qf1+ Kb6 124. Qg1+ Kb7 125. Qg7+ Kc6 126. Qd4 Qh4+ 127. Ke5 Qh8+ 128. Ke4 Qh7+ $17) 121. Qd4+ {[%emt 0:00:04] Weighted Error Value: White=0.12 (very precise) /Black=0.11 (very precise)} 1/2-1/2